bitfinex-derivatives/quotes_ETHF0:USTF0_20251009
["timestamp","ask_amount","ask_price","bid_price","bid_amount"]
[1759985142849,3.50484183,4449.5,4449.4,1.39266]
[1759985143050,0.5441,4450.2,4450.1,0.7362]
[1759985143251,1.47177066,4450.2,4450.1,0.7362]
[1759985143458,4.05231629,4450.2,4450.1,1.1406]
[1759985143755,1.14087066,4450.2,4450.1,0.7362]
[1759985144556,0.92767066,4450.2,4450.1,0.7362]
[1759985145358,0.92767066,4450.2,4450.1,1.1406]
[1759985145950,0.92767066,4450.2,4450.1,0.7362]
[1759985147557,0.92767066,4450.2,4450.1,1.1406]
[1759985147854,0.92767066,4450.2,4450.1,1.3656]
[1759985148649,0.40438,4450.3,4450.2,1.15519]
[1759985149958,0.40437,4450.5,4450.4,0.82466]
[1759985150257,3.84632366,4450.5,4450.4,1.15516]
[1759985152255,3.44195366,4450.5,4450.4,1.15516]
[1759985152557,0.40696117,4450.8,4450.7,1.15514]
[1759985152855,3.27505777,4450.8,4450.7,1.15514]
[1759985153457,2.87071777,4450.8,4450.7,1.38014]
[1759985153654,0.00262117,4450.8,4450.7,1.38014]
[1759985156361,0.40696117,4450.8,4450.7,1.38014]
[1759985157562,0.00262117,4450.8,4450.7,1.38014]
[1759985161761,0.40696117,4450.8,4450.7,1.38014]
[1759985162163,0.00262117,4450.8,4450.7,1.38014]
[1759985163162,0.00262117,4450.8,4450.7,0.5555]
[1759985163163,1.18246117,4450.8,4450.7,0.5555]
[1759985163362,0.85316117,4450.8,4450.7,1.38014]
[1759985163656,0.44882117,4450.8,4450.7,1.38014]
[1759985163861,0.00262117,4450.8,4450.7,1.38014]
[1759985164465,0.40696117,4450.8,4450.7,1.38014]
[1759985165467,0.00262117,4450.8,4450.7,1.38014]
[1759985179774,1.61507092,4452.1,4452.0,0.40423]
[1759985180074,1.61507092,4452.1,4452.0,0.5675]
[1759985180075,3.83793079,4452.1,4452.0,0.5675]
[1759985180274,3.83793079,4452.1,4452.0,1.29563]
[1759985180475,3.64801079,4452.1,4452.0,1.29563]
[1759985180676,3.64972552,4452.1,4452.0,1.29817183]
[1759985181480,4.18522552,4452.1,4452.0,1.29817183]
[1759985181972,4.18522552,4452.1,4452.0,0.54524183]
[1759985182370,4.18522552,4452.1,4452.0,0.68184183]
[1759985182775,4.18522552,4452.1,4452.0,0.89394183]
[1759985184284,3.34450717,4452.1,4452.0,0.89394183]
[1759985184680,3.86630415,4452.1,4452.0,0.89394183]
[1759985184882,3.34450717,4452.1,4452.0,0.89394183]
[1759985185182,3.74872717,4452.1,4452.0,1.29817183]
[1759985185481,3.74872717,4452.1,4452.0,1.52317183]
[1759985187387,4.06722717,4452.1,4452.0,1.52317183]
[1759985189587,4.06722717,4452.1,4452.0,1.11894183]
[1759985194194,3.53172717,4452.1,4452.0,1.11894183]
[1759985194988,3.74872717,4452.1,4452.0,1.11894183]
[1759985195195,5.02954748,4452.1,4452.0,0.22754183]
[1759985195487,5.02954748,4452.1,4452.0,0.00254183]
[1759985195488,10.5509658,4452.1,4452.0,0.00254183]
[1759985195692,1.15411,4451.1,4451.0,0.6793]
[1759985195891,2.11643031,4451.1,4451.0,0.9043]
[1759985196296,2.11643031,4451.1,4451.0,0.6793]
[1759985196494,4.98482191,4451.1,4451.0,0.6793]
[1759985196695,4.98482191,4451.1,4451.0,0.76941432]
[1759985198094,4.98482191,4451.1,4451.0,0.54441432]
[1759985198297,4.98482191,4451.1,4451.0,0.76941432]
[1759985200495,4.98482191,4451.1,4451.0,1.11651432]
[1759985200694,3.2727016,4451.1,4451.0,1.52083432]
[1759985202898,3.4978016,4451.1,4451.0,1.52083432]
[1759985203300,3.0934916,4451.1,4451.0,1.52083432]
[1759985203796,2.8683916,4451.1,4451.0,1.52083432]
[1759985204501,3.2727016,4451.1,4451.0,1.52083432]
[1759985206800,3.2727016,4451.1,4451.0,1.11651432]
[1759985207003,3.4955016,4451.1,4451.0,1.11651432]
[1759985207197,4.0446016,4451.1,4451.0,1.11651432]
[1759985207397,3.7047016,4451.1,4451.0,1.11651432]
[1759985210003,3.7047016,4451.1,4451.0,1.52083432]
[1759985221520,4.0446016,4451.1,4451.0,1.11651432]
[1759985221813,4.0446016,4451.1,4451.0,1.52083432]
[1759985224118,3.7047016,4451.1,4451.0,1.52083432]
[1759985225327,4.2269201,4451.1,4451.0,1.52083432]
[1759985226720,4.5668201,4451.1,4451.0,1.52083432]
[1759985228221,4.2269201,4451.1,4451.0,1.52083432]
[1759985230020,4.22687556,4451.1,4451.0,1.52083432]
[1759985230721,3.7047016,4451.1,4451.0,1.52083432]
[1759985232323,4.22686966,4451.1,4451.0,1.52083432]
[1759985232826,4.54596966,4451.1,4451.0,1.52083432]
[1759985234324,4.22686966,4451.1,4451.0,1.52083432]
[1759985241729,4.01766966,4451.1,4451.0,1.52083432]
[1759985242127,0.62586,4451.7,4451.6,0.2225]
[1759985242328,1.14846319,4451.7,4451.6,1.38396]
[1759985242524,4.11582182,4451.7,4451.6,1.38396]
[1759985244428,3.89422182,4451.7,4451.6,1.38396]
[1759985244628,3.48996182,4451.7,4451.6,1.38396]
[1759985245227,2.96735863,4451.7,4451.6,1.38396]
[1759985245530,0.40423,4452.0,4451.9,0.83954]
[1759985245722,0.92660189,4452.0,4451.9,1.38394]
[1759985246032,3.79111944,4452.0,4451.9,1.38394]
[1759985247327,3.26874755,4452.0,4451.9,1.38394]
[1759985247833,2.86451755,4452.0,4451.9,1.38394]
[1759985255239,3.26874755,4452.0,4451.9,1.38394]
[1759985256032,2.86451755,4452.0,4451.9,1.38394]
[1759985257235,3.26874755,4452.0,4451.9,1.38394]
[1759985258833,2.86451755,4452.0,4451.9,1.38394]
[1759985261541,3.26874755,4452.0,4451.9,1.38394]
[1759985263539,3.48924755,4452.0,4451.9,1.38394]
[1759985263743,3.71364755,4452.0,4451.9,0.9797]
[1759985264744,3.71364755,4452.0,4451.9,1.38394]
[1759985266045,3.48924755,4452.0,4451.9,1.38394]
[1759985269050,3.71364755,4452.0,4451.9,1.38394]
[1759985269548,4.05054755,4452.0,4451.9,1.38394]
[1759985270341,3.48924755,4452.0,4451.9,1.38394]
[1759985273150,4.5716824,4452.0,4451.9,1.38394]
[1759985274153,3.6061524,4452.0,4451.9,1.38394]
[1759985279859,3.08501755,4452.0,4451.9,1.38394]
[1759985286565,4.05054755,4452.0,4451.9,0.5444]
[1759985286762,0.772,4451.3,4451.2,0.7329]
[1759985286959,0.772,4451.3,4451.2,1.182]
[1759985287162,1.17631,4451.1,4451.0,0.00171432]
[1759985287359,2.90800702,4451.1,4451.0,0.22671432]
[1759985287559,5.88178018,4451.1,4451.0,0.22671432]
[1759985289954,5.88178018,4451.1,4451.0,0.00171432]
[1759985291378,5.34973433,4451.1,4451.0,0.00171432]
[1759985292465,3.40887316,4451.1,4451.0,0.89001432]
[1759985292654,0.96066,4451.7,4451.6,0.2262]
[1759985292859,1.70608624,4451.7,4451.6,0.7639]
[1759985293059,4.60031878,4451.7,4451.6,0.7639]
[1759985296558,4.60031878,4451.7,4451.6,0.5436]
[1759985296869,4.60031878,4451.7,4451.6,0.94786]
[1759985297863,0.2219,4451.2,4451.1,0.5436]
[1759985298064,0.7714,4451.2,4451.1,0.94791]
[1759985298463,1.1757,4451.2,4451.1,0.94791]
[1759985299369,1.1757,4451.2,4451.1,1.17291]
[1759985302570,1.1757,4451.2,4451.1,0.94671]
[1759985302770,0.40431,4451.1,4451.0,0.00171432]
[1759985302971,1.17571,4451.1,4451.0,0.00171432]
[1759985303179,4.15833479,4451.1,4451.0,0.00171432]
[1759985303971,5.12128153,4451.1,4451.0,0.00171432]
[1759985305175,5.65360637,4451.1,4451.0,0.00171432]
[1759985306264,4.69065963,4451.1,4451.0,0.00171432]
[1759985318988,4.69065963,4451.1,4451.0,0.32051432]
[1759985319783,4.69065963,4451.1,4451.0,0.93613432]
[1759985320082,3.95184963,4451.1,4451.0,1.28353432]
[1759985320288,3.51494963,4451.1,4451.0,1.28353432]
[1759985320486,0.2206,4451.5,4451.4,0.4218]
[1759985320681,0.75392921,4451.5,4451.4,1.14488]
[1759985320876,3.70528918,4451.5,4451.4,1.14488]
[1759985321390,3.70525851,4451.5,4451.4,1.14488]
[1759985322488,3.92815851,4451.5,4451.4,1.14488]
[1759985323284,3.92832446,4451.5,4451.4,1.14488]
[1759985323485,0.75406449,4451.5,4451.4,1.14488]
[1759985323684,0.53346449,4451.5,4451.4,1.14488]
[1759985324196,0.74026449,4451.5,4451.4,1.14488]
[1759985325391,0.20851473,4452.1,4452.0,0.75283]
[1759985325593,0.00171473,4452.1,4452.0,2.48867674]
[1759985328686,0.022,4452.9,4452.4,0.40419]
[1759985328891,0.4295,4453.3,4453.2,0.83912]
[1759985329091,0.2068,4453.3,4453.2,1.06412]
[1759985329300,3.15739719,4453.3,4453.2,1.06412]
[1759985329491,3.15739719,4453.3,4453.2,1.39492]
[1759985329882,2.63423606,4453.3,4453.2,1.39492]
[1759985330090,1.37584674,4454.5,4453.3,0.3308]
[1759985330303,0.2068,4453.8,4453.7,1.72874674]
[1759985330590,3.10343625,4453.8,4453.7,1.39487]
[1759985330987,3.10607672,4453.8,4453.7,1.39487]
[1759985331187,3.10607672,4453.8,4453.7,0.9908]
[1759985331393,0.00264047,4453.8,4453.7,1.39487]
[1759985331586,0.00264047,4453.8,4453.7,6.39487]
[1759985338101,0.20944047,4453.8,4453.7,1.39487]
[1759985338298,0.43214047,4453.8,4453.7,1.39487]
[1759985339000,0.20944047,4453.8,4453.7,1.39487]
[1759985340195,0.00264047,4453.8,4453.7,1.39487]
[1759985341200,0.20944047,4453.8,4453.7,1.39487]
[1759985341401,0.77464047,4453.8,4453.7,1.39487]
[1759985341595,0.43214047,4453.8,4453.7,1.39487]
[1759985342505,0.43214047,4453.8,4453.7,0.5558]
[1759985342506,5.09134227,4453.8,4453.7,0.5558]
[1759985342997,5.09134227,4453.8,4453.7,0.225]
[1759985343201,5.09134227,4453.8,4453.7,0.5558]
[1759985343599,5.09134227,4453.8,4453.7,0.225]
[1759985343799,3.35639553,4453.8,4453.7,0.9908]
[1759985344202,4.12839553,4453.8,4453.7,0.7737]
[1759985344599,4.12839553,4453.8,4453.7,0.5558]
[1759985344800,4.12839553,4453.8,4453.7,0.225]
[1759985345198,2.95233553,4453.8,4453.7,1.17777]
[1759985345504,3.15913553,4453.8,4453.7,1.39487]
[1759985345705,4.12839553,4453.8,4453.7,0.9908]
[1759985345904,4.12839553,4453.8,4453.7,0.5558]
[1759985346705,4.12839553,4453.8,4453.7,0.7737]
[1759985351605,4.12839553,4453.8,4453.7,0.5558]
[1759985352705,4.12839553,4453.8,4453.7,0.7651]
[1759985355405,4.66036197,4453.8,4453.7,0.7651]
[1759985355607,4.66036197,4453.8,4453.7,0.5558]
[1759985356806,4.66036197,4453.8,4453.7,0.95987]
[1759985357010,4.31786197,4453.8,4453.7,1.39257]
[1759985358016,0.53460691,4453.8,4453.7,2.35551674]
[1759985363914,0.74430691,4453.8,4453.7,2.59048465]
[1759985364816,0.53460691,4453.8,4453.7,2.59048465]
[1759985368215,0.00264047,4453.8,4453.7,7.59048465]
[1759985371217,0.00264047,4453.8,4453.7,7.7661737]
[1759985373519,0.00264047,4453.8,4453.7,7.59048465]
[1759985374219,0.00264047,4453.8,4453.7,38.59048465]
[1759985376524,0.00264047,4453.8,4453.7,38.7692514]
[1759985378319,0.00264047,4453.8,4453.7,38.59048465]
[1759985379321,0.00264047,4453.8,4453.7,2.59048465]
[1759985382323,1.16503,4455.3,4455.2,0.2217]
[1759985382529,1.69312872,4455.3,4455.2,0.9879]
[1759985382828,4.66238187,4455.3,4455.2,0.9879]
[1759985383420,4.66437554,4455.3,4455.2,0.78043731]
[1759985384528,4.66437554,4455.3,4455.2,1.18437731]
[1759985385221,3.93084554,4455.3,4455.2,1.39897731]
[1759985385926,4.33477554,4455.3,4455.2,1.39897731]
[1759985388225,4.67357554,4455.3,4455.2,1.39897731]
[1759985389332,4.33477554,4455.3,4455.2,1.39897731]
[1759985393339,4.67357554,4455.3,4455.2,1.39897731]
[1759985393739,4.67357554,4455.3,4455.2,0.00223731]
[1759985393740,10.87149019,4455.3,4455.2,0.00223731]
[1759985395240,10.34339147,4455.3,4455.2,0.00223731]
[1759985395442,10.87113283,4455.3,4455.2,0.00223731]
[1759985400047,12.08198375,4455.3,4455.2,0.00223731]
[1759985401838,12.30698375,4455.3,4455.2,0.00223731]
[1759985404653,7.30698375,4455.3,4455.2,0.00223731]
[1759985404851,1.18016,4454.9,4454.8,0.225]
[1759985405148,5.81968673,4454.9,4454.8,0.225]
[1759985405849,5.81968673,4454.9,4454.8,0.22746095]
[1759985412054,5.81968673,4454.9,4454.8,0.53986095]
[1759985412250,5.81968673,4454.9,4454.8,0.22746095]
[1759985412456,5.81968673,4454.9,4454.8,0.53986095]
[1759985412753,5.81968673,4454.9,4454.8,0.22746095]
[1759985413456,5.81968673,4454.9,4454.8,0.53986095]
[1759985414556,5.81968673,4454.9,4454.8,0.75096095]
[1759985415057,5.81968673,4454.9,4454.8,0.97136095]
[1759985415058,3.44161208,4454.9,4454.8,0.97136095]
[1759985415259,0.52774136,4454.9,4454.8,0.97136095]
[1759985415558,0.61692367,4455.3,4455.2,0.7439]
[1759985415759,1.14467039,4455.3,4455.2,0.7439]
[1759985415957,4.59674689,4455.3,4455.2,0.7439]
[1759985418555,3.85141689,4455.3,4455.2,0.7439]
[1759985419656,4.19281689,4455.3,4455.2,0.7439]
[1759985420159,4.19281689,4455.3,4455.2,0.3124]
[1759985420654,4.19281689,4455.3,4455.2,0.5235]
[1759985422062,4.59674689,4455.3,4455.2,0.5235]
[1759985422363,4.59674689,4455.3,4455.2,0.7439]
[1759985422859,4.25534689,4455.3,4455.2,0.7439]
[1759985423062,4.03384689,4455.3,4455.2,0.7439]
[1759985423363,4.59674689,4455.3,4455.2,0.7439]
[1759985424163,4.25534689,4455.3,4455.2,1.14784]
[1759985425360,4.59674689,4455.3,4455.2,0.7439]
[1759985434071,4.59674689,4455.3,4455.2,0.5235]
[1759985434874,4.59674689,4455.3,4455.2,0.92744]
[1759985435072,4.59674689,4455.3,4455.2,0.5235]
[1759985438976,4.06900017,4455.3,4455.2,0.5235]
[1759985439172,4.59674249,4455.3,4455.2,0.5235]
[1759985445473,4.59674249,4455.3,4455.0,0.53445]
[1759985445474,0.40395,4455.1,4455.0,0.40395]
[1759985445678,1.68589232,4455.1,4455.0,0.92895]
[1759985445882,4.53741792,4455.1,4455.0,0.92895]
[1759985446079,4.53741792,4455.1,4455.0,1.28615]
[1759985449072,4.20261792,4455.1,4455.0,1.28615]
[1759985450278,4.53741792,4455.1,4455.0,1.28615]
[1759985451474,4.20261792,4455.1,4455.0,1.28615]
[1759985454893,4.53741792,4455.1,4455.0,1.28615]
[1759985455387,4.20261792,4455.1,4455.0,1.28615]
[1759985455582,4.53741792,4455.1,4455.0,1.28615]
[1759985456180,4.20261792,4455.1,4455.0,1.28615]
[1759985461585,4.53741792,4455.1,4455.0,1.28615]
[1759985465887,4.20261792,4455.1,4455.0,1.28615]
[1759985466391,4.53741792,4455.1,4455.0,1.28615]
[1759985469493,4.20261792,4455.1,4455.0,1.28615]
[1759985470891,4.51981792,4455.1,4455.0,1.28615]
[1759985471190,4.20261792,4455.1,4455.0,1.28615]
[1759985474293,4.51981792,4455.1,4455.0,1.28615]
[1759985475804,4.51981792,4455.1,4455.0,0.72115]
[1759985476005,4.51981792,4455.1,4455.0,0.94615]
[1759985476406,4.51981792,4455.1,4455.0,1.16975]
[1759985476706,4.51981792,4455.1,4455.0,1.51705]
[1759985480209,4.51981792,4455.1,4455.0,1.29205]
[1759985480410,4.51981792,4455.1,4455.0,1.51705]
[1759985480612,4.51981792,4455.1,4455.0,1.29205]
[1759985480809,4.51981792,4455.1,4455.0,1.51705]
[1759985481512,4.51981792,4455.1,4455.0,1.29205]
[1759985481714,4.51981792,4455.1,4455.0,1.51705]
[1759985482312,4.51981792,4455.1,4455.0,1.29205]
[1759985482515,4.51981792,4455.1,4455.0,1.51705]
[1759985483916,4.20261792,4455.1,4455.0,1.51705]
[1759985486212,4.51981792,4455.1,4455.0,1.51705]
[1759985487510,4.51981792,4455.1,4455.0,0.40395]
[1759985487813,4.51981792,4455.1,4455.0,0.96455]
[1759985488017,4.51981792,4455.1,4455.0,1.18815]
[1759985488316,4.11586792,4455.1,4455.0,1.53545]
[1759985488617,3.79866792,4455.1,4455.0,1.53545]
[1759985499522,4.11386792,4455.1,4455.0,1.18815]
[1759985499724,4.11386792,4455.1,4455.0,1.53925]
[1759985499922,3.79866792,4455.1,4455.0,1.53925]
[1759985500634,4.11386792,4455.1,4455.0,1.53925]
[1759985502527,4.11386792,4455.1,4455.0,1.31425]
[1759985502726,4.11386792,4455.1,4455.0,1.53925]
[1759985503933,3.79866792,4455.1,4455.0,1.53925]
[1759985505331,4.12236792,4455.1,4455.0,1.53925]
[1759985507532,3.79866792,4455.1,4455.0,1.53925]
[1759985508836,4.12236792,4455.1,4455.0,1.18815]
[1759985509226,4.12236792,4455.1,4455.0,1.52915]
[1759985509533,3.79866792,4455.1,4455.0,1.52915]
[1759985510334,4.12236792,4455.1,4455.0,1.52915]
[1759985510634,3.79866792,4455.1,4455.0,1.52915]
[1759985513936,4.12236792,4455.1,4455.0,1.52915]
[1759985517639,3.79866792,4455.1,4455.0,1.52915]
[1759985519936,4.20261792,4455.1,4455.0,1.52915]
[1759985520636,4.52631792,4455.1,4455.0,1.52915]
[1759985521140,4.20261792,4455.1,4455.0,1.52915]
[1759985522142,4.52631792,4455.1,4455.0,1.52915]
[1759985522335,4.20261792,4455.1,4455.0,1.52915]
[1759985525436,4.52631792,4455.1,4455.0,0.62895]
[1759985525941,4.52631792,4455.1,4455.0,0.96395]
[1759985526137,4.52631792,4455.1,4455.0,1.18285]
[1759985526340,4.52631792,4455.1,4455.0,1.31805]
[1759985529242,4.53861792,4455.1,4455.0,1.52385]
[1759985534542,4.13466792,4455.1,4455.0,1.52385]
[1759985534743,3.37926792,4455.1,4455.0,1.52385]
[1759985534947,3.3798095,4455.1,4455.0,1.52385]
[1759985535542,4.0016595,4455.1,4455.0,1.52385]
[1759985535841,4.5391595,4455.1,4455.0,1.52385]
[1759985537048,4.2139595,4455.1,4455.0,1.52385]
[1759985538251,4.5391595,4455.1,4455.0,1.52385]
[1759985538840,4.2139595,4455.1,4455.0,1.52385]
[1759985541253,3.3798095,4455.1,4455.0,1.52385]
[1759985542349,4.1352095,4455.1,4455.0,1.52385]
[1759985543359,4.5391595,4455.1,4455.0,1.52385]
[1759985546157,1.6876339,4455.1,4455.0,1.52385]
[1759985546463,4.6331857,4455.1,4455.0,1.52385]
[1759985548066,4.3079857,4455.1,4455.0,1.52385]
[1759985553270,4.6331857,4455.1,4455.0,1.52385]
[1759985553770,4.3079857,4455.1,4455.0,1.52385]
[1759985561273,3.4738357,4455.1,4455.0,1.52385]
[1759985561481,1.614975,4456.6,4456.5,0.8839]
[1759985561482,0.2116,4456.6,4456.5,0.8839]
[1759985561778,0.2116,4457.0,4456.9,0.7581]
[1759985561978,0.2116,4457.0,4456.9,0.9831]
[1759985562179,3.7168562,4457.0,4456.9,0.9831]
[1759985562375,3.1915537,4457.0,4456.9,0.9831]
[1759985565985,0.00288699,4457.0,4456.9,0.9831]
[1759985566383,0.00288699,4457.0,4456.9,1.94409781]
[1759985568073,0.21028699,4457.0,4456.9,1.94409781]
[1759985568685,0.00288699,4457.0,4456.9,1.94409781]
[1759985570088,0.00288699,4457.0,4456.9,2.34787781]
[1759985584294,0.00288699,4457.0,4456.9,2.34687781]
[1759985584295,0.21028699,4457.0,4456.9,2.34687781]
[1759985585492,0.42358699,4457.0,4456.9,2.34687781]
[1759985585796,0.74048699,4457.0,4456.9,2.34687781]
[1759985587300,0.42358699,4457.0,4456.9,2.34687781]
[1759985588295,0.42358699,4457.0,4456.9,0.3191]
[1759985588296,2.1052548,4457.0,4456.9,0.3191]
[1759985588493,1.14141,4456.6,4456.5,1.07482]
[1759985588694,1.14141,4456.6,4456.5,1.29882]
[1759985589299,0.7376,4456.6,4456.5,1.29882]
[1759985589498,0.7376,4456.6,4456.5,1.51112]
[1759985590000,0.4207,4456.6,4456.5,1.51112]
[1759985590698,0.4207,4456.6,4456.5,1.1073]
[1759985590699,0.82451,4456.6,4456.5,1.1073]
[1759985591193,0.82451,4456.6,4456.5,2.47211781]
[1759985592200,1.16371,4456.6,4456.5,1.1073]
[1759985592591,1.16371,4456.6,4456.5,1.51112]
[1759985595602,0.7599,4456.6,4456.5,1.51112]
[1759985596203,0.4207,4456.6,4456.5,1.51112]
[1759985596702,1.16371,4456.6,4456.5,1.51112]
[1759985602603,1.16371,4456.6,4456.5,1.28712]
[1759985602905,1.16371,4456.6,4456.5,0.224]
[1759985603305,1.16371,4456.6,4456.5,0.62782]
[1759985603505,1.16371,4456.6,4456.5,0.94202]
[1759985604106,1.16371,4456.6,4456.5,1.16832]
[1759985604308,1.16371,4456.6,4456.5,0.94432]
[1759985604500,1.16371,4456.6,4456.5,1.29592]
[1759985604700,0.7599,4456.6,4456.5,1.29592]
[1759985604996,4.1063222,4456.6,4456.5,0.224]
[1759985605203,4.62861675,4456.6,4456.5,0.224]
[1759985605808,9.62861675,4456.6,4456.5,0.224]
[1759985608006,9.62861675,4456.6,4456.5,0.5382]
[1759985608202,9.62861675,4456.6,4456.5,0.224]
[1759985608408,9.28941675,4456.6,4456.5,1.29592]
[1759985608597,9.28941675,4456.6,4456.5,1.29562]
[1759985609008,9.62861675,4456.6,4456.5,1.29562]
[1759985609606,9.62861675,4456.6,4456.5,0.8918]
[1759985609910,9.62861675,4456.6,4456.5,1.29562]
[1759985610807,2.9426122,4456.6,4456.5,1.29562]
[1759985616916,4.1324222,4456.6,4456.5,0.6681]
[1759985617211,3.5668222,4456.6,4456.5,0.8918]
[1759985617901,3.5668222,4456.6,4456.5,1.29562]
[1759985621416,4.1085222,4456.6,4456.5,1.29562]
[1759985621617,4.1085222,4456.6,4456.5,1.51962]
[1759985622118,3.7932222,4456.6,4456.5,1.51962]
[1759985623619,2.9426122,4456.6,4456.5,1.1158]
[1759985623920,0.00288699,4457.0,4456.9,1.16888]
[1759985624120,0.00288699,4457.0,4456.9,2.58964371]
[1759985626316,0.00288699,4457.0,4456.9,1.39288]
[1759985626518,0.2257,4456.2,4456.1,0.4458]
[1759985626814,0.2257,4456.2,4456.1,1.07365]
[1759985627019,0.2257,4456.2,4456.1,1.39295]
[1759985627916,0.94483,4456.5,4456.4,0.84963]
[1759985628115,0.62953,4456.5,4456.4,1.39293]
[1759985633323,0.2257,4456.5,4456.4,1.39293]
[1759985633721,0.00288699,4457.0,4456.5,0.1354]
[1759985633722,0.21938699,4457.0,4456.5,0.1354]
[1759985633922,0.21938699,4457.0,4456.9,0.82498]
[1759985634225,0.00288699,4457.0,4456.9,1.04898]
[1759985634522,0.00288699,4457.0,4456.9,1.37388]
[1759985638624,0.00187579,4457.0,4456.9,1.37388]
[1759985638824,0.022,4457.9,4457.8,1.1498]
[1759985639021,0.022,4457.9,4457.8,0.9701]
[1759985639221,0.2385,4457.9,4457.8,0.9701]
[1759985639524,0.2385,4457.9,4457.8,0.533]
[1759985639525,0.7782,4457.9,4457.8,0.533]
[1759985639824,0.7562,4457.5,4457.4,0.7461]
[1759985640026,1.15996,4457.2,4456.8,0.3249]
[1759985640223,2.95589747,4457.5,4457.4,0.4212]
[1759985640421,0.02376045,4457.9,4457.8,0.4037]
[1759985640627,0.75941493,4457.9,4457.8,1.0489]
[1759985640815,3.4290352,4457.9,4457.8,1.3738]
[1759985641019,0.02376045,4457.9,4457.8,2.57056371]
[1759985641219,0.02376045,4457.9,4457.8,0.9701]
[1759985641220,0.77996045,4457.9,4457.8,0.9701]
[1759985641424,0.77996045,4457.9,4457.8,0.3249]
[1759985641623,3.67501632,4457.9,4457.8,0.225]
[1759985641823,3.67501632,4457.9,4457.8,0.533]
[1759985642028,3.34421632,4457.9,4457.8,0.4212]
[1759985642232,3.34421632,4457.9,4457.8,0.7461]
[1759985642620,0.02376045,4457.9,4457.8,0.7461]
[1759985643022,0.77996045,4457.9,4457.8,0.7461]
[1759985643225,3.72546506,4457.9,4457.8,0.225]
[1759985643523,3.72546506,4457.9,4457.8,0.758]
[1759985643723,3.72546506,4457.9,4457.8,0.9711]
[1759985644329,8.30006506,4457.9,4457.1,0.3249]
[1759985644631,8.30006506,4457.9,4457.1,0.533]
[1759985644632,0.7562,4457.2,4457.1,0.533]
[1759985644821,3.18576506,4457.9,4457.8,0.4212]
[1759985645022,0.77996045,4457.9,4457.8,0.5499]
[1759985645227,3.67012714,4457.9,4457.8,0.225]
[1759985645423,3.67012714,4457.9,4457.5,0.3249]
[1759985645424,0.40372,4457.6,4457.5,0.3249]
[1759985645630,1.15992,4457.6,4457.5,0.5499]
[1759985645833,3.72195878,4457.6,4457.5,0.5499]
[1759985646120,3.72195878,4457.6,4457.5,1.1065]
[1759985646529,3.39115878,4457.6,4457.5,1.1065]
[1759985646734,2.96575878,4457.6,4457.5,2.30326371]
[1759985647244,3.18225878,4457.6,4457.5,2.30326371]
[1759985647536,0.02376045,4457.9,4457.5,1.97836371]
[1759985647741,0.24026045,4457.9,4457.8,0.7461]
[1759985647943,0.44916045,4457.9,4457.8,0.7461]
[1759985648139,3.73531962,4457.9,4457.8,0.7461]
[1759985648344,3.40451962,4457.9,4457.8,0.7461]
[1759985648942,1.15962,4457.6,4457.5,0.54]
[1759985649144,0.4327,4457.6,4457.5,1.0878]
[1759985649349,3.3856381,4457.6,4457.5,1.0878]
[1759985650043,2.9529381,4457.6,4457.5,1.0878]
[1759985650341,3.38100891,4457.8,4457.7,0.315]
[1759985650547,3.60070891,4457.8,4457.7,0.7372]
[1759985650749,0.2197,4457.8,4457.7,0.7372]
[1759985651045,0.24346045,4457.9,4457.8,1.1409]
[1759985651241,0.45646045,4457.9,4457.8,0.7372]
[1759985651442,3.64807479,4457.9,4457.8,0.7372]
[1759985652045,4.05176479,4457.9,4457.8,0.7372]
[1759985652244,3.64807479,4457.9,4457.5,0.225]
[1759985652544,1.15962,4457.6,4457.5,0.54]
[1759985652944,4.02048519,4457.6,4457.5,0.54]
[1759985653148,4.02048519,4457.6,4457.5,0.94373]
[1759985653452,3.61676519,4457.6,4457.5,1.28323]
[1759985654146,0.24346045,4457.9,4457.8,0.6176]
[1759985654345,0.64715045,4457.9,4457.8,0.7372]
[1759985654645,3.76389157,4457.9,4457.8,0.7372]
[1759985654942,4.08709157,4457.9,4457.8,0.5289]
[1759985655143,1.15966,4457.2,4457.1,0.93266]
[1759985655344,0.7559,4457.2,4457.1,1.15766]
[1759985655740,1.15966,4457.2,4457.1,0.7539]
[1759985655950,1.15966,4457.2,4457.1,0.315]
[1759985656245,1.15969,4456.9,4456.8,0.71879]
[1759985656550,3.61442272,4456.9,4456.8,1.15769]
[1759985656845,3.29122272,4456.9,4456.8,1.36599]
[1759985657045,1.15964,4457.4,4457.3,0.315]
[1759985657250,1.15964,4457.4,4456.5,0.96142]
[1759985657251,0.4327,4456.6,4456.5,0.96142]
[1759985657551,0.4327,4456.6,4456.5,1.18642]
[1759985657842,0.4327,4456.6,4456.0,2.93191521]
[1759985657843,0.4327,4456.4,4456.3,0.315]
[1759985658045,0.7559,4456.4,4456.3,0.54]
[1759985658245,3.6935875,4456.4,4456.3,0.7539]
[1759985658844,3.6935875,4456.4,4456.3,0.9622]
[1759985658845,2.9376875,4456.4,4456.3,0.9622]
[1759985659240,3.09305453,4456.8,4456.7,1.141]
[1759985659440,0.2197,4456.8,4456.7,0.9622]
[1759985659640,0.4327,4456.8,4456.7,0.9622]
[1759985659845,3.6906314,4456.8,4456.7,0.9622]
[1759985660852,0.4327,4457.4,4457.3,0.82594]
[1759985661044,0.4327,4457.4,4457.3,1.05094]
[1759985661246,3.40481078,4457.4,4457.3,1.36594]
[1759985661445,3.72801078,4457.4,4457.3,1.36594]
[1759985662048,3.40481078,4457.4,4457.3,1.36594]
[1759985664848,0.2197,4456.6,4456.5,0.1256]
[1759985665049,2.97211078,4457.4,4457.0,0.1256]
[1759985665250,0.2197,4457.4,4457.3,0.82595]
[1759985665446,3.67968796,4457.6,4457.5,0.6545]
[1759985665646,1.6783396,4457.6,4457.5,1.05823]
[1759985666045,1.6783396,4457.6,4457.5,0.93263]
[1759985666046,4.57443873,4457.6,4457.5,0.93263]
[1759985666249,3.41481873,4457.6,4457.5,1.26653]
[1759985666443,3.32879913,4457.6,4457.5,1.26653]
[1759985666850,4.05571913,4457.6,4457.5,0.93263]
[1759985667057,3.65199913,4457.6,4457.5,0.93263]
[1759985667351,3.65199913,4457.6,4457.0,0.52937]
[1759985667352,0.5429,4457.1,4457.0,0.52937]